Cogmind - Beta 10.2 @@@ ROGUE MODE // 2021.01.26 @ 15:02:04 Player: W_W Result: Destroyed by G-34 Mercenary with Small Laser Performance ------------- Evolutions (0) 0 Regions Visited (1) 200 Robots Destroyed (22) 110 Value Destroyed (309) 309 Prototype IDs (0) 0 Alien Tech Used (0) 0 Bonus (0) 0 TOTAL SCORE: 619 Bonus ------- None Cogmind --------- Core Integrity 0/250 Matter 252/300 Energy 230/250 System Corruption 0% Temperature Cool (6) Movement Walking (120) Location -10/Materials Parts ------- > --- POWER (1) -------- Ion Engine > --- PROPULSION (2) --- Aluminum Leg Aluminum Leg > --- UTILITY (2) ------ Small Storage Unit Medium Storage Unit > --- WEAPON (2) ------- Small Laser > --- INVENTORY (10) --- Light Ion Engine Light Ion Engine Light Nuclear Core Mining Laser Peak State ------------ > --- POWER ------------ Ion Engine > --- PROPULSION ------- Light Treads Light Treads > --- UTILITY ---------- Small Storage Unit Small Matter Pod > --- WEAPON ----------- Small Laser Assault Rifle > --- INVENTORY -------- Ion Engine Light Assault Rifle Mining Laser [Rating: 7] Favorites ----------- Power Ion Engine Engine Ion Engine Propulsion Light Treads Treads Light Treads Leg Aluminum Leg Utility Small Storage Unit Storage Small Storage Unit Weapon Small Laser Energy Gun Small Laser Ballistic Gun Assault Rifle Build | -11 -10 ------- Run | Scr Mat Slots Evolved . | . . Power . | . . Propulsion . | . . Utility . | . . Weapon . | . . Parts Attached 13 | 7 6 Power 2 | 1 1 Engine 2 | 1 1 Core . | . . Reactor . | . . Propulsion 4 | 2 2 Treads 2 | 2 . Leg 2 | . 2 Wheel . | . . Hover . | . . Flight . | . . Utility 3 | 2 1 Device . | . . Storage 3 | 2 1 Processor . | . . Hackware . | . . Protection . | . . Artifact . | . . Weapon 4 | 2 2 Energy Gun 2 | 1 1 Energy Cannon . | . . Ballistic Gun 2 | 1 1 Ballistic Cannon . | . . Launcher . | . . Special Weapon . | . . Impact Weapon . | . . Slashing Weapon . | . . Piercing Weapon . | . . Special Melee Weapon . | . . Unidentified Prototypes . | . . Parts Lost 6 | . 6 Power 1 | . 1 Propulsion 2 | . 2 Utility . | . . Weapon 3 | . 3 Highest Loss Streak 6 | . 6 Average Slot Usage (%) 92 | . 92 Engine 14 | . 14 Treads 23 | . 23 Storage 27 | . 27 Energy Gun 13 | . 13 Ballistic Gun 12 | . 12 Naked Turns . | . . Heaviest Build 20 | 13 20 Greatest Support 40 | 40 40 Greatest Overweight (x) 5 | 2 5 Average Overweight (x) . | . . Largest Inventory Capacity 10 | 6 10 Average Capacity 7 | 5 9 Most Carried 6 | 5 6 Average Carried 3 | 3 5 Final Capacity 10 | 6 10 Final Carried 5 | 5 4 Class Distribution -------------------- 100% | Mutant Dominant Class ---------------- Mutant | -10/Materials Resources | -11 -10 ----------- Run | Scr Mat Matter Collected 528 | 449 79 Remotely . | . . Salvage Created 659 | 332 327 Parts 49 | 30 19 Haulers Intercepted . | . . Recyclers Shooed . | . . Parts Field Recycled . | . . Retrieved Matter . | . . Parts Self-Destructed . | . . Prevented . | . . Kills | -11 -10 ------- Run | Scr Mat Combat Hostiles Destroyed 6 | . 6 Guns 6 | . 6 Classes Destroyed 5 | 3 2 Worker 5 | 4 1 Builder 1 | . 1 Tunneler 9 | 9 . Recycler 1 | 1 . Grunt 6 | . 6 Best Kill Streak 7 | 7 4 Combat Bots Only 3 | . 3 Max Kills in Single Turn 1 | 1 1 Gunslinging . | . . Exploded . | . . Melee . | . . Uniques/NPCs Destroyed . | . . Combat | -11 -10 -------- Run | Scr Mat Damage Taken 1015 | . 1015 Core 250 | . 250 Absorbed by Shields . | . . Core Remaining (%) 100 | 100 . Volleys Fired 92 | 43 49 Largest 2 | 2 2 Hottest 60 | 60 60 Shots Fired 159 | 81 78 Gun 159 | 81 78 Cannon . | . . Launcher . | . . Special . | . . Kinetic 81 | 43 38 Thermal 78 | 38 40 Explosive . | . . Electromagnetic . | . . Robot Hit Streak 10 | 9 10 Robot Miss Streak 6 | 6 2 Penetration Max . | . . Secondary Targets 1 | . 1 Max Gunslinging Chain 1 | . 1 Shots Hit Robots 99 | 43 56 Core Hits 34 | 15 19 Critical Hits . | . . Critical Kills . | . . Critical Parts Destroyed . | . . Melee Attacks . | . . Impact . | . . Slashing . | . . Piercing . | . . Sneak Attacks . | . . Combat Hostiles . | . . Follow-up Attacks . | . . Damage Inflicted 1136 | 464 672 Guns 1136 | 464 672 Cannons . | . . Explosions . | . . Melee . | . . Ramming . | . . Kinetic 586 | 242 344 Thermal 550 | 222 328 Explosive . | . . Electromagnetic . | . . Impact . | . . Slashing . | . . Piercing . | . . Highest Corruption . | . . Average Corruption . | . . Corruption Purged . | . . Overload Shots . | . . Overflow Damage . | . . Projectiles . | . . Explosions . | . . Melee . | . . Knockbacks . | . . Impact . | . . Kinetic . | . . Secondary . | . . Self-Inflicted Damage . | . . Shots . | . . Rammed . | . . Targets Rammed . | . . Kicked . | . . Crushed . | . . Highest Temperature 121 | . 121 Average Temperature 51 | . 51 Received Heat Transfer 567 | . 567 Siege Activations . | . . Robots Corrupted . | . . Combat Hostiles . | . . Parts Fried . | . . Impact Corruptions . | . . Robots Melted . | . . Combat Hostiles . | . . Parts Melted . | . . Heat Transferred 1250 | 500 750 Parts Sabotaged . | . . Parts Stolen . | . . Parts Stripped . | . . Power Chain Reactions . | . . Missiles Intercepted . | . . Alert | -11 -10 ------- Run | Scr Mat Peak Influence 143 | 65 143 Initial 3 | . 3 Average 44 | 30 63 Maximum Alert Level . | . . Low Security (%) 100 | 100 100 Level 1 . | . . Level 2 . | . . Level 3 . | . . Level 4 . | . . Level 5 . | . . High Security . | . . Max Security . | . . Squads Dispatched 3 | . 3 Investigation 1 | . 1 Extermination . | . . Reinforcement 2 | . 2 Assault . | . . Garrison . | . . Intercept . | . . Construction Impeded . | . . Haulers Reinforced . | . . Stealth | -11 -10 --------- Run | Scr Mat Distress Signals 4 | . 4 Communications Jammed . | . . Distress Signals . | . . Times Spotted 16 | . 16 Peak Tracking Total 7 | . 7 Tactical Retreats 1 | . 1 Traps | -11 -10 ------- Run | Scr Mat Traps Triggered 1 | . 1 Indirectly . | . . Trap Hack Attempts . | . . Triggered . | . . Disarmed . | . . Reprogrammed . | . . Reused . | . . Traps Extracted . | . . Installed . | . . Triggered . | . . Machines | -11 -10 ---------- Run | Scr Mat Machines Disabled 1 | . 1 Max in Single Turn 1 | . 1 Machines Sabotaged . | . . Garrisons Compromised . | . . Overloaded Fab Kills . | . . Fab Network Shutdowns . | . . Hacking | -11 -10 --------- Run | Scr Mat Machines Accessed . | . . Terminals . | . . Fabricators . | . . Repair Stations . | . . Recycling Units . | . . Scanalyzers . | . . Garrison Access . | . . Total Hacks . | . . Successful . | . . Failed . | . . Catastrophic . | . . Database Lockouts . | . . Manual . | . . Terminals . | . . Fabricators . | . . Repair Stations . | . . Recycling Units . | . . Scanalyzers . | . . Garrison Access . | . . Terminal Hacks . | . . Fabricator Hacks . | . . Repair Station Hacks . | . . Recycling Unit Hacks . | . . Scanalyzer . | . . Garrison Access Hacks . | . . Unauthorized Hacks . | . . Terminals . | . . Fabricators . | . . Repair Stations . | . . Recycling Units . | . . Scanalyzers . | . . Garrison Access . | . . Data Cores Recovered . | . . Used . | . . Hacking Detections . | . . Full Trace Events . | . . Feedback Events . | . . Feedback Blocked . | . . Robot Schematics Acquired . | . . Robots Built . | . . Matter . | . . Time . | . . Total Robot Build Rating . | . . Part Schematics Acquired . | . . Parts Built . | . . Matter . | . . Time . | . . Total Part Build Rating . | . . Parts Repaired . | . . Time . | . . Parts Recycled . | . . Recycled Matter . | . . Retrieved Matter . | . . Retrieved Components . | . . Parts Scanalyzed . | . . Part Schematics Acquired . | . . Parts Damaged . | . . Bothacking | -11 -10 ------------ Run | Scr Mat Used RIF Installer . | . . Robots Hacked . | . . Non-combat . | . . Combat . | . . Robot Hacks Applied . | . . Relay Couplers Released . | . . Robots Rewired . | . . Allies Hacked . | . . Hacks Repelled . | . . Allies | -11 -10 -------- Run | Scr Mat Total Allies . | . . Largest Group . | . . Highest-Rated Group . | . . Highest-Rated Ally . | . . Total Orders . | . . Ally Attacks . | . . Total Damage . | . . Kills . | . . Allies Corrupted . | . . Allies Melted . | . . Intel | -11 -10 ------- Run | Scr Mat Robot Analysis Total . | . . Derelict Logs Recovered . | . . Drone Launches . | . . Drone Recoveries . | . . Exploration | -11 -10 ------------- Run | Scr Mat Turns Passed 853 | 479 374 Spaces Moved 325 | 215 110 Core 8 | 6 2 Treads 314 | 209 105 Legs 3 | . 3 Wheels . | . . Hover . | . . Flight . | . . Fastest Speed 50 | 50 150 Average Speed 159 | 158 162 Slowest Speed 300 | 160 300 Overloaded Moves . | . . Propulsion Burnouts . | . . Robots Hopped . | . . Cave-ins Triggered . | . . Exploration Rate (%) 19 | 8 30 Regions Visited 1 Branch Regions . Pre-discovered Areas . | . . Known Exits Taken . | . . Unknown Exits Taken 1 | 1 . Scrap Searched . | . . Spaces Dug . | . . Terrain Destroyed . | . . Melee . | . . Projectile . | . . AOE . | . . Terrain Rammed . | . . Walls Destroyed . | . . Machines Disabled . | . . Actions | -11 -10 --------- Run | Scr Mat Total 499 | 271 228 Wait 62 | . 62 Move 324 | 214 110 Hop . | . . Pick Up 6 | 5 1 Fast Attach 11 | 7 4 Attach 2 | . 2 Detach 1 | 1 . Swap . | . . Drop 1 | 1 . Fire 92 | 43 49 Melee . | . . Ram . | . . Kick . | . . Crush . | . . Escape Stasis . | . . Rewire . | . . Trap . | . . Miscellaneous . | . . Route ------- -11/Scrapyard -10/Materials (discovered 1 exit: [*Min]) History --------- Turn | Location | Event 19 | -11/Scrapyard | Discovered new exit (range 16) 480 | -11/Scrapyard | Entered Materials 481 | -10/Materials | Build established: Mutant 749 | -10/Materials | Discovered new exit (range 16) 794 | -10/Materials | Core integrity fell below 50% 819 | -10/Materials | Core integrity fell below 20% 842 | -10/Materials | Lost 6 parts (1p2n3w) 854 | -10/Materials | Destroyed by G-34 Mercenary with Small Laser Last Messages --------------- 00813_ K-01 Serf collects debris. 00815_ G-34 Mercenary destroyed. 00815_ K-01 Serf collects debris. 00815_ Acquired Sml. Laser. 00816_ K-01 Serf collects debris. 00819_ G-34 Mercenary destroyed. 00819_ K-01 Serf collects debris. 00831_ K-01 Serf cleans the Pressure Siphon. 00833_ K-01 Serf collects debris. 00836_ K-01 Serf cleans the Pressure Siphon. 00838_ W-16 Scout sends out distress signal. 00838_ K-01 Serf collects debris. 00839_ K-01 Serf cleans the Pressure Siphon. 00843_ K-01 Serf collects debris. 00844_ K-01 Serf cleans the Pressure Siphon. 00845_ K-01 Serf collects debris. 00848_ Acquired Aluminum Leg. 00848_ U-05 Engineer lays Concrete. 00854_ Acquired Aluminum Leg. 00854_ U-05 Engineer lays Concrete. Map ----- +----------------------------------------------------+ | | | | | | | | | ?????????????????????????????????????????? | | ?????????????????????????????????????????? | | ?????????????????????????????????????????? | | ?????????????????????????????????????????? | | ?????????????????????????????????????????? | | ?????????????????????????????????????????? | | ?????????????????????????????????????????? | | ??????????????????????????####???????????? | | ?????????????????????????#"" #???????????? | | ???????????????????????##"!!!"##?????????? | | ???????????????????????#"" ""#?????????? | | ???????????????????????# #?????????? | | ???????????????????????# < #?????????? | | ??????????????? ???????? #?????????? | | ??????????????? ??????? ??????????? | | ???????????????? ??????? ???????????? | | ???????????????? ######## #???????????? | | ???????????????? #???????????? | | ????????????????? k ########????? | | ?????????????????""" """g=! ## """""????? | | ??????????????? """ """%=% ## """""????? | | ??????????????? """ """@* # """"""???? | | ??????????????# """ """ # """"""???? | | ??????????????# !g + """"""???? | | ??????????????# w% # ?? | | ??????????????# [ # = #? | | ??????????????# #######k # #? | | ??????????????+ ????????# ###########? | | ????????????????????????# #??????????? | | ????????????????????????#% ###????????? | | ????????????????????????# T#????????? | | ????????????????????????# k ""#????????? | | ????????????????????????# ug####???????? | | ??????????????????????### % #???????? | | ??????????????????????# = ! ######### | | ???????????????########= # ! ? | | ???????????????# =+%* # " "# | | ???????????????# =%# # "" "# | | ???????????????# """# # "" "# | | ???????????????# """# # """ T# | | ???????????????# """# + "" "# | | ???????????????# # # """ "# | | ???????????????######## # """ "# | | ??????????????????????####### ## """ # | | ????????????????????????????# ## " # | | ????????????????????????????# ## [ # | +----------------------------------------------------+ Best States ------------- Heat Dissipation 25 Energy Generation 10 Energy Capacity 250 Matter Stores 350 Matter Capacity 350 Sight Range 16 Terrain Scan Density 10 Evasion (%) 40 Recoil Reduction 2 Item Schematics ----------------- None Robot Schematics ------------------ None Fabricated ------------ Nothing Alien Tech Used ----------------- None Achievements -------------- None Challenges ------------ None Game ------ Seed DispersionLaserSuperbattery Manual? 0 Play Time 00:09:50 Cumulative 114.1 hours Start 2021.01.25 @ 20:10:22 End 2021.01.26 @ 15:02:04 Sessions 4 Manual Loads 0 Difficulty Rogue Special Mode None Game No. 92 Rogue 92 Adventurer 0 Explorer 0 Win Type - Total 0 Types 0/0/0/0/0/0/0/0/0 Lore% 44 Gallery% 52 Achievement% 32 Wizard Run 0 Options --------- ASCII 0 Keyboard 1 Movement Numpad Keybinds 0 Fullscreen 1 Font 18/SmallcapsGlow Map View 76x50 Tactical HUD 1 Map Filters NONE Filters NONE Steam 1 RUN: 4fdbea82-b7ea-4168-a327-a3e2c6a466c3